[Event "*** Titled Tuesday Blitz"]
[Site "Chess.com"]
[Date "2021.02.16"]
[Round "8"]
[White "GameOverBro"]
[Black "Sir_Frankie_Crisp"]
[Result "1-0"]
[WhiteElo "2434"]
[BlackElo "2266"]
[TimeControl "180+1"]
[EndTime "11:31:03 PST"]
[Termination "GameOverBro won on time"]

1. e4 {[%clk 0:03:00.9]} 1... c5 {[%clk 0:02:58.3]} 2. Ne2 {[%clk 0:02:58.1]}
2... Nc6 {[%clk 0:02:56.6]} 3. Nbc3 {[%clk 0:02:58.2]} 3... g6 {[%clk
0:02:55.9]} 4. d4 {[%clk 0:02:58]} 4... cxd4 {[%clk 0:02:55.2]} 5. Nxd4 {[%clk
0:02:58.9]} 5... Bg7 {[%clk 0:02:55.5]} 6. Nde2 {[%clk 0:02:59.6]} 6... Nf6
{[%clk 0:02:52.6]} 7. g3 {[%clk 0:02:59.7]} 7... b5 {[%clk 0:02:53.1]} 8. Bg2
{[%clk 0:02:58.9]} 8... b4 {[%clk 0:02:50.7]} 9. Nd5 {[%clk 0:02:59.1]} 9... O-O
{[%clk 0:02:43.9]} 10. O-O {[%clk 0:02:57.6]} 10... a5 {[%clk 0:02:40.6]} 11. a3
{[%clk 0:02:54.7]} 11... Rb8 {[%clk 0:02:35.1]} 12. axb4 {[%clk 0:02:54]} 12...
axb4 {[%clk 0:02:36]} 13. Ra2 {[%clk 0:02:54.3]} 13... d6 {[%clk 0:02:09.2]} 14.
b3 {[%clk 0:02:49.9]} 14... Nxd5 {[%clk 0:01:48.6]} 15. exd5 {[%clk 0:02:48.1]}
15... Ne5 {[%clk 0:01:47.8]} 16. h3 {[%clk 0:02:44.9]} 16... Qc7 {[%clk
0:01:38.4]} 17. Nd4 {[%clk 0:02:40.1]} 17... Bb7 {[%clk 0:01:32.3]} 18. Be3
{[%clk 0:02:37.7]} 18... Ra8 {[%clk 0:01:25.7]} 19. Rxa8 {[%clk 0:02:34.8]}
19... Rxa8 {[%clk 0:01:23]} 20. Qd2 {[%clk 0:02:29.1]} 20... Qc3 {[%clk
0:01:04.5]} 21. Qxc3 {[%clk 0:02:05.5]} 21... bxc3 {[%clk 0:01:05.4]} 22. f4
{[%clk 0:02:05.7]} 22... Nd7 {[%clk 0:01:01.3]} 23. Nc6 {[%clk 0:02:05.9]} 23...
Kf8 {[%clk 0:00:57.9]} 24. f5 {[%clk 0:01:54]} 24... Nf6 {[%clk 0:00:47.3]} 25.
fxg6 {[%clk 0:01:50.9]} 25... hxg6 {[%clk 0:00:47.4]} 26. Bd4 {[%clk 0:01:48.9]}
26... Ra2 {[%clk 0:00:42.8]} 27. Rf2 {[%clk 0:01:46.9]} 27... Ra6 {[%clk
0:00:15.1]} 28. Bxc3 {[%clk 0:01:40.9]} 28... Nxd5 {[%clk 0:00:12.6]} 29. Bxg7+
{[%clk 0:01:36.7]} 29... Kxg7 {[%clk 0:00:11.9]} 30. Bxd5 {[%clk 0:01:32.2]}
30... e6 {[%clk 0:00:12.3]} 31. Nb4 {[%clk 0:01:30]} 31... Ra1+ {[%clk 0:00:12]}
32. Kh2 {[%clk 0:01:25.5]} 32... Bxd5 {[%clk 0:00:12.1]} 33. Nxd5 {[%clk
0:01:24.7]} 33... exd5 {[%clk 0:00:13]} 34. Kg2 {[%clk 0:01:20.7]} 34... d4
{[%clk 0:00:07.4]} 35. Rd2 {[%clk 0:01:19.5]} 35... Rc1 {[%clk 0:00:06.5]} 36.
Kf3 {[%clk 0:01:19.6]} 36... Kf6 {[%clk 0:00:07]} 37. Ke4 {[%clk 0:01:19.7]}
37... Rg1 {[%clk 0:00:04.6]} 38. g4 {[%clk 0:01:02.9]} 38... Ke6 {[%clk
0:00:02.7]} 39. Kxd4 {[%clk 0:01:02.2]} 39... Rg3 {[%clk 0:00:02.9]} 40. Rd3
{[%clk 0:01:02.1]} 40... Rg2 {[%clk 0:00:03.4]} 41. c4 {[%clk 0:01:02]} 41...
Rb2 {[%clk 0:00:02.7]} 42. Kc3 {[%clk 0:01:02.4]} 42... Rb1 {[%clk 0:00:02.1]}
43. Re3+ {[%clk 0:01:02.5]} 43... Kd7 {[%clk 0:00:02.2]} 44. Rf3 {[%clk
0:01:02.4]} 44... Ke6 {[%clk 0:00:02.3]} 45. b4 {[%clk 0:01:02.8]} 45... f5
{[%clk 0:00:02.7]} 46. gxf5+ {[%clk 0:01:02.5]} 46... gxf5 {[%clk 0:00:03.4]}
47. b5 {[%clk 0:01:02.9]} 47... Ke5 {[%clk 0:00:03.9]} 48. h4 {[%clk 0:01:00]}
48... d5 {[%clk 0:00:04.4]} 49. cxd5 {[%clk 0:00:52.5]} 49... Rxb5 {[%clk
0:00:03.5]} 50. Kc4 {[%clk 0:00:51.9]} 50... Rb1 {[%clk 0:00:02]} 51. Re3+
{[%clk 0:00:51.1]} 51... Kd6 {[%clk 0:00:02.4]} 52. Re6+ {[%clk 0:00:50.9]}
52... Kd7 {[%clk 0:00:03.2]} 53. Rf6 {[%clk 0:00:50.9]} 53... Ra1 {[%clk
0:00:03.3]} 54. Rxf5 {[%clk 0:00:50.8]} 54... Ra4+ {[%clk 0:00:03.9]} 55. Kc5
{[%clk 0:00:51]} 55... Rxh4 {[%clk 0:00:04.6]} 56. Rf7+ {[%clk 0:00:51.5]} 56...
Kd8 {[%clk 0:00:04.7]} 57. Kc6 {[%clk 0:00:51.5]} 57... Rd4 {[%clk 0:00:03.4]}
58. Kd6 {[%clk 0:00:42.6]} 58... Ke8 {[%clk 0:00:02.8]} 59. Re7+ {[%clk
0:00:42.9]} 59... Kd8 {[%clk 0:00:02.4]} 60. Rh7 {[%clk 0:00:42.6]} 60... Ke8
{[%clk 0:00:02.8]} 61. Rh8+ {[%clk 0:00:42.7]} 61... Kf7 {[%clk 0:00:03]} 62.
Kc6 {[%clk 0:00:40]} 62... Ke7 {[%clk 0:00:03.6]} 63. Rh7+ {[%clk 0:00:39]}
63... Kd8 {[%clk 0:00:02.6]} 64. Kd6 {[%clk 0:00:28.5]} 64... Ke8 {[%clk
0:00:02.4]} 65. Rh8+ {[%clk 0:00:28.9]} 65... Kf7 {[%clk 0:00:02.7]} 66. Ra8
{[%clk 0:00:28.4]} 66... Rd1 {[%clk 0:00:02.3]} 67. Kc6 {[%clk 0:00:26.1]} 67...
Ke7 {[%clk 0:00:02.5]} 68. Ra7+ {[%clk 0:00:22]} 68... Kd8 {[%clk 0:00:02.7]}
69. Kd6 {[%clk 0:00:21.8]} 69... Ke8 {[%clk 0:00:02.9]} 70. Ra5 {[%clk
0:00:16.6]} 70... Rd2 {[%clk 0:00:01.8]} 71. Kc7 {[%clk 0:00:11.7]} 1-0

[Event "*** Titled Tuesday Blitz"]
[Site "Chess.com"]
[Date "2021.02.16"]
[Round "8"]
[White "Kretov_Evgenij"]
[Black "Happy1712Drummer"]
[Result "0-1"]
[WhiteElo "2614"]
[BlackElo "2468"]
[TimeControl "180+1"]
[EndTime "11:31:05 PST"]
[Termination "Happy1712Drummer won by checkmate"]

1. d4 {[%clk 0:03:00.9]} 1... c6 {[%clk 0:02:44.4]} 2. c4 {[%clk 0:03:00.8]}
2... d5 {[%clk 0:02:45.3]} 3. Nc3 {[%clk 0:03:00.7]} 3... Nf6 {[%clk 0:02:44.7]}
4. e3 {[%clk 0:03:01]} 4... e6 {[%clk 0:02:44]} 5. Nf3 {[%clk 0:03:01.3]} 5...
Nbd7 {[%clk 0:02:43.9]} 6. Bd3 {[%clk 0:03:01.6]} 6... Bb4 {[%clk 0:02:39.7]} 7.
O-O {[%clk 0:03:01]} 7... O-O {[%clk 0:02:38]} 8. a3 {[%clk 0:03:00.7]} 8... Ba5
{[%clk 0:02:36.5]} 9. b4 {[%clk 0:02:59.9]} 9... dxc4 {[%clk 0:02:36.3]} 10.
Bxc4 {[%clk 0:02:59.2]} 10... Bc7 {[%clk 0:02:36.4]} 11. Bb2 {[%clk 0:02:55.5]}
11... Qe7 {[%clk 0:02:35.5]} 12. e4 {[%clk 0:02:43.6]} 12... e5 {[%clk
0:02:33.3]} 13. d5 {[%clk 0:02:37]} 13... a5 {[%clk 0:02:31]} 14. Qb3 {[%clk
0:02:28.2]} 14... Nb6 {[%clk 0:02:23.2]} 15. dxc6 {[%clk 0:02:27.1]} 15... bxc6
{[%clk 0:01:44.6]} 16. bxa5 {[%clk 0:02:08.5]} 16... Nxc4 {[%clk 0:01:38.8]} 17.
Qxc4 {[%clk 0:02:08.6]} 17... Ba6 {[%clk 0:01:39.1]} 18. Qxc6 {[%clk 0:02:07.7]}
18... Bxf1 {[%clk 0:01:36.5]} 19. Kxf1 {[%clk 0:01:57.3]} 19... Bxa5 {[%clk
0:01:34.4]} 20. Nd5 {[%clk 0:01:55]} 20... Nxd5 {[%clk 0:01:29.3]} 21. exd5
{[%clk 0:01:47]} 21... Rfc8 {[%clk 0:01:07.2]} 22. Qb5 {[%clk 0:01:30.8]} 22...
Rab8 {[%clk 0:00:55.3]} 23. Qxa5 {[%clk 0:01:28.9]} 23... Rxb2 {[%clk
0:00:54.4]} 24. Re1 {[%clk 0:01:24]} 24... f6 {[%clk 0:00:46.8]} 25. Nd4 {[%clk
0:00:59.6]} 25... Qc5 {[%clk 0:00:20.6]} 26. Qxc5 {[%clk 0:00:35.7]} 26... Rxc5
{[%clk 0:00:21.5]} 27. Nf5 {[%clk 0:00:34.1]} 27... Rcc2 {[%clk 0:00:21.2]} 28.
Ne3 {[%clk 0:00:31.7]} 28... Rxf2+ {[%clk 0:00:20.3]} 29. Kg1 {[%clk 0:00:32.3]}
29... Rfd2 {[%clk 0:00:19.9]} 30. a4 {[%clk 0:00:30.9]} 30... Ra2 {[%clk
0:00:18.4]} 31. Rb1 {[%clk 0:00:28.8]} 31... Re2 {[%clk 0:00:15.9]} 32. d6
{[%clk 0:00:19.8]} 32... Rxe3 {[%clk 0:00:14.3]} 33. d7 {[%clk 0:00:20.1]} 33...
Rd3 {[%clk 0:00:13.7]} 34. Rb8+ {[%clk 0:00:19.7]} 34... Kf7 {[%clk 0:00:13.9]}
35. d8=Q {[%clk 0:00:20]} 35... Rxd8 {[%clk 0:00:13.5]} 36. Rxd8 {[%clk
0:00:20.3]} 36... Rxa4 {[%clk 0:00:14.1]} 37. Rd7+ {[%clk 0:00:20.6]} 37... Kg6
{[%clk 0:00:14.1]} 38. Kf2 {[%clk 0:00:21]} 38... h5 {[%clk 0:00:13.9]} 39. h3
{[%clk 0:00:20.5]} 39... h4 {[%clk 0:00:13]} 40. Kf3 {[%clk 0:00:20.9]} 40...
Kh6 {[%clk 0:00:12.7]} 41. Ke3 {[%clk 0:00:21.1]} 41... Rf4 {[%clk 0:00:12.4]}
42. Ra7 {[%clk 0:00:20.2]} 42... g6 {[%clk 0:00:12.5]} 43. Ra6 {[%clk
0:00:20.5]} 43... Kg5 {[%clk 0:00:12.7]} 44. Ra8 {[%clk 0:00:20.8]} 44... Kf5
{[%clk 0:00:12.3]} 45. Ra6 {[%clk 0:00:21.1]} 45... Rb4 {[%clk 0:00:11.2]} 46.
Rc6 {[%clk 0:00:21.1]} 46... Rb3+ {[%clk 0:00:09.7]} 47. Kf2 {[%clk 0:00:21.3]}
47... Kg5 {[%clk 0:00:09.4]} 48. Re6 {[%clk 0:00:21.6]} 48... Ra3 {[%clk
0:00:07.9]} 49. Ke2 {[%clk 0:00:20.8]} 49... Ra5 {[%clk 0:00:07.9]} 50. Kf3
{[%clk 0:00:20.2]} 50... f5 {[%clk 0:00:07.9]} 51. Rb6 {[%clk 0:00:20.3]} 51...
Ra3+ {[%clk 0:00:07.6]} 52. Kf2 {[%clk 0:00:20.3]} 52... e4 {[%clk 0:00:07]} 53.
Re6 {[%clk 0:00:19.7]} 53... Ra2+ {[%clk 0:00:06.9]} 54. Kf1 {[%clk 0:00:19.6]}
54... Ra3 {[%clk 0:00:07]} 55. Kf2 {[%clk 0:00:19.9]} 55... Rg3 {[%clk
0:00:07.6]} 56. Kf1 {[%clk 0:00:19.6]} 56... Kf4 {[%clk 0:00:07.8]} 57. Kf2
{[%clk 0:00:20]} 57... g5 {[%clk 0:00:07.9]} 58. Kf1 {[%clk 0:00:20.2]} 58...
Ra3 {[%clk 0:00:07.6]} 59. Rb6 {[%clk 0:00:19.8]} 59... Ra1+ {[%clk 0:00:07.2]}
60. Kf2 {[%clk 0:00:20.1]} 60... Ra2+ {[%clk 0:00:07.6]} 61. Kf1 {[%clk
0:00:20.4]} 61... e3 {[%clk 0:00:07.5]} 62. Rb3 {[%clk 0:00:19.1]} 62... Rf2+
{[%clk 0:00:06.3]} 63. Kg1 {[%clk 0:00:19.2]} 63... Rd2 {[%clk 0:00:06.8]} 64.
Kf1 {[%clk 0:00:19.3]} 64... Rd1+ {[%clk 0:00:06.5]} 65. Ke2 {[%clk 0:00:19.4]}
65... Rd2+ {[%clk 0:00:06.9]} 66. Kf1 {[%clk 0:00:19.6]} 66... Rc2 {[%clk
0:00:07.3]} 67. Kg1 {[%clk 0:00:19.1]} 67... Rc1+ {[%clk 0:00:07]} 68. Kh2
{[%clk 0:00:19.4]} 68... e2 {[%clk 0:00:07.4]} 69. Rb4+ {[%clk 0:00:18.5]} 69...
Ke5 {[%clk 0:00:07.5]} 70. Rb3 {[%clk 0:00:18.8]} 70... e1=Q {[%clk 0:00:05.8]}
71. Rb5+ {[%clk 0:00:18.4]} 71... Kd6 {[%clk 0:00:05.1]} 72. Rb6+ {[%clk
0:00:18.2]} 72... Kc7 {[%clk 0:00:05.2]} 73. Rb2 {[%clk 0:00:17.1]} 73... Qg3#
{[%clk 0:00:04.2]} 0-1

[Event "*** Titled Tuesday Blitz"]
[Site "Chess.com"]
[Date "2021.02.16"]
[Round "8"]
[White "Cecile-Haussernot"]
[Black "ketster"]
[Result "1-0"]
[WhiteElo "2340"]
[BlackElo "2423"]
[TimeControl "180+1"]
[EndTime "11:31:08 PST"]
[Termination "Cecile-Haussernot won on time"]

1. d4 {[%clk 0:03:00.9]} 1... Nf6 {[%clk 0:02:57.7]} 2. g4 {[%clk 0:02:58.5]}
2... Nxg4 {[%clk 0:02:52.5]} 3. e4 {[%clk 0:02:56.1]} 3... d5 {[%clk 0:02:48.4]}
4. e5 {[%clk 0:02:47.8]} 4... g6 {[%clk 0:02:38.3]} 5. Be2 {[%clk 0:02:43.2]}
5... h5 {[%clk 0:02:34.1]} 6. h3 {[%clk 0:02:38.8]} 6... Nh6 {[%clk 0:02:34]} 7.
Nf3 {[%clk 0:02:30.7]} 7... Bg7 {[%clk 0:02:28.4]} 8. Ng5 {[%clk 0:02:17.3]}
8... e6 {[%clk 0:02:14.4]} 9. Rg1 {[%clk 0:02:07.3]} 9... Nf5 {[%clk 0:02:11.5]}
10. Bf4 {[%clk 0:01:51.3]} 10... c5 {[%clk 0:02:06.1]} 11. c3 {[%clk 0:01:44.3]}
11... Nc6 {[%clk 0:02:00.6]} 12. dxc5 {[%clk 0:01:31]} 12... Nxe5 {[%clk
0:01:58.8]} 13. Na3 {[%clk 0:01:17.9]} 13... a6 {[%clk 0:01:52.1]} 14. Qd2
{[%clk 0:01:05]} 14... Qe7 {[%clk 0:01:47.2]} 15. b4 {[%clk 0:00:46.3]} 15...
Bd7 {[%clk 0:01:46]} 16. Nc2 {[%clk 0:00:45.8]} 16... Nc6 {[%clk 0:01:30.1]} 17.
Nf3 {[%clk 0:00:36.7]} 17... e5 {[%clk 0:01:18.1]} 18. Bg5 {[%clk 0:00:35.2]}
18... Qe6 {[%clk 0:01:16.5]} 19. O-O-O {[%clk 0:00:34.6]} 19... Nce7 {[%clk
0:01:09.4]} 20. Bxe7 {[%clk 0:00:29.4]} 20... Nxe7 {[%clk 0:01:09.6]} 21. Ng5
{[%clk 0:00:29.5]} 21... Qc6 {[%clk 0:01:09.1]} 22. Ne3 {[%clk 0:00:27.9]} 22...
d4 {[%clk 0:01:06.8]} 23. Bf3 {[%clk 0:00:26.4]} 23... Qa4 {[%clk 0:00:53.4]}
24. Nc4 {[%clk 0:00:25.1]} 24... O-O {[%clk 0:00:38.6]} 25. Bxh5 {[%clk
0:00:18.6]} 25... Bb5 {[%clk 0:00:31.9]} 26. Nb6 {[%clk 0:00:12.6]} 26... Qa3+
{[%clk 0:00:32.1]} 27. Kb1 {[%clk 0:00:12.8]} 27... dxc3 {[%clk 0:00:31.1]} 28.
Qc2 {[%clk 0:00:13.4]} 28... Qxb4+ {[%clk 0:00:30.7]} 29. Ka1 {[%clk 0:00:11.7]}
29... Rad8 {[%clk 0:00:29.4]} 30. Ne4 {[%clk 0:00:08]} 30... Rxd1+ {[%clk
0:00:25.1]} 31. Rxd1 {[%clk 0:00:08.9]} 31... Qb2+ {[%clk 0:00:21.1]} 32. Qxb2
{[%clk 0:00:08.1]} 32... cxb2+ {[%clk 0:00:22]} 33. Kxb2 {[%clk 0:00:08.5]}
33... gxh5 {[%clk 0:00:22.9]} 34. Rg1 {[%clk 0:00:08.5]} 34... f5 {[%clk
0:00:21.7]} 35. Nd6 {[%clk 0:00:08.5]} 35... Bc6 {[%clk 0:00:20.5]} 36. Rg5
{[%clk 0:00:07.7]} 36... Nd5 {[%clk 0:00:20.1]} 37. Nbc4 {[%clk 0:00:07]} 37...
e4+ {[%clk 0:00:20.1]} 38. Ne5 {[%clk 0:00:07.1]} 38... Kh7 {[%clk 0:00:14]} 39.
Rxh5+ {[%clk 0:00:07.4]} 39... Bh6 {[%clk 0:00:14.5]} 40. Nef7 {[%clk
0:00:06.3]} 40... Nf4 {[%clk 0:00:10.4]} 41. Rxh6+ {[%clk 0:00:06.5]} 41... Kg7
{[%clk 0:00:10.7]} 42. Rh4 {[%clk 0:00:06.6]} 42... Ng6 {[%clk 0:00:10.2]} 43.
Rh5 {[%clk 0:00:05.8]} 43... Rxf7 {[%clk 0:00:10.6]} 44. Nxf7 {[%clk 0:00:05.5]}
44... Kxf7 {[%clk 0:00:11.5]} 45. Rxf5+ {[%clk 0:00:06.3]} 45... Ke6 {[%clk
0:00:12.1]} 46. Rg5 {[%clk 0:00:06.9]} 46... Ne5 {[%clk 0:00:12.3]} 47. h4
{[%clk 0:00:07.1]} 47... Nf3 {[%clk 0:00:12.7]} 48. Rg6+ {[%clk 0:00:06.4]}
48... Kf5 {[%clk 0:00:12.7]} 49. h5 {[%clk 0:00:07.3]} 49... Ng5 {[%clk
0:00:11.2]} 50. Rg8 {[%clk 0:00:07.7]} 50... Bd5 {[%clk 0:00:09.7]} 51. Rf8+
{[%clk 0:00:07.3]} 51... Kg4 {[%clk 0:00:10.1]} 52. h6 {[%clk 0:00:07.9]} 52...
Kh5 {[%clk 0:00:08.7]} 53. Rf5 {[%clk 0:00:07.3]} 53... Bg8 {[%clk 0:00:02.6]}
54. Rf8 {[%clk 0:00:04.3]} 54... Bh7 {[%clk 0:00:02.9]} 55. Rf6 {[%clk
0:00:03.9]} 55... Bg6 {[%clk 0:00:02.3]} 56. Kc3 {[%clk 0:00:04.3]} 56... Kxh6
{[%clk 0:00:02.7]} 57. Kd4 {[%clk 0:00:04.9]} 57... Kg7 {[%clk 0:00:02.4]} 58.
Rb6 {[%clk 0:00:05.3]} 58... Bf7 {[%clk 0:00:01.5]} 59. Rxb7 {[%clk 0:00:05.8]}
59... Ne6+ {[%clk 0:00:02.3]} 60. Ke5 {[%clk 0:00:05]} 60... Ng5 {[%clk
0:00:02.1]} 61. Ra7 {[%clk 0:00:04.9]} 61... Nf3+ {[%clk 0:00:02.3]} 62. Kxe4
{[%clk 0:00:04.7]} 62... Nd2+ {[%clk 0:00:02.7]} 63. Kd3 {[%clk 0:00:04.5]}
63... Nc4 {[%clk 0:00:01.7]} 64. Rxf7+ {[%clk 0:00:04.3]} 64... Kxf7 {[%clk
0:00:01.6]} 65. Kxc4 {[%clk 0:00:05.2]} 65... Ke6 {[%clk 0:00:02.5]} 66. f4
{[%clk 0:00:05.6]} 66... Kd7 {[%clk 0:00:03.4]} 67. a4 {[%clk 0:00:06]} 67...
Kc6 {[%clk 0:00:04.3]} 68. f5 {[%clk 0:00:06.7]} 1-0

[Event "*** Titled Tuesday Blitz"]
[Site "Chess.com"]
[Date "2021.02.16"]
[Round "8"]
[White "kobemagic"]
[Black "ZiggyStardust64"]
[Result "1-0"]
[WhiteElo "2419"]
[BlackElo "2567"]
[TimeControl "180+1"]
[EndTime "11:31:09 PST"]
[Termination "kobemagic won by checkmate"]

1. c4 {[%clk 0:03:00.9]} 1... e6 {[%clk 0:02:58.3]} 2. g3 {[%clk 0:03:00.9]}
2... d5 {[%clk 0:02:58.2]} 3. Bg2 {[%clk 0:03:00.8]} 3... a6 {[%clk 0:02:58.8]}
4. Nf3 {[%clk 0:03:00.3]} 4... dxc4 {[%clk 0:02:58.8]} 5. a4 {[%clk 0:03:00]}
5... Nc6 {[%clk 0:02:58.6]} 6. O-O {[%clk 0:02:59.2]} 6... e5 {[%clk 0:02:58.6]}
7. Qc2 {[%clk 0:02:58.7]} 7... Be6 {[%clk 0:02:55.2]} 8. Na3 {[%clk 0:02:58.7]}
8... Bxa3 {[%clk 0:02:52.2]} 9. bxa3 {[%clk 0:02:57]} 9... Nge7 {[%clk
0:02:33.3]} 10. Rb1 {[%clk 0:02:56.1]} 10... Rb8 {[%clk 0:02:32.1]} 11. Ng5
{[%clk 0:02:52.9]} 11... Bd5 {[%clk 0:02:32]} 12. e4 {[%clk 0:02:51]} 12... Nd4
{[%clk 0:02:32.2]} 13. Qd1 {[%clk 0:02:45.2]} 13... Bc6 {[%clk 0:02:32.2]} 14.
Bb2 {[%clk 0:02:37.1]} 14... Qd7 {[%clk 0:02:27]} 15. Bxd4 {[%clk 0:02:30.3]}
15... exd4 {[%clk 0:02:20.7]} 16. Qh5 {[%clk 0:02:26.4]} 16... Ng6 {[%clk
0:02:12.7]} 17. Nxh7 {[%clk 0:02:21.2]} 17... Kd8 {[%clk 0:01:40.2]} 18. f4
{[%clk 0:02:08.2]} 18... Nf8 {[%clk 0:01:08.5]} 19. Qg5+ {[%clk 0:01:54.7]}
19... Qe7 {[%clk 0:01:08.4]} 20. Qxe7+ {[%clk 0:01:44.2]} 20... Kxe7 {[%clk
0:01:08.4]} 21. Nxf8 {[%clk 0:01:42.9]} 21... Rhxf8 {[%clk 0:01:09]} 22. Rfc1
{[%clk 0:01:41.2]} 22... b5 {[%clk 0:01:07.9]} 23. axb5 {[%clk 0:01:38.7]} 23...
axb5 {[%clk 0:01:08.8]} 24. a4 {[%clk 0:01:39.2]} 24... Rb6 {[%clk 0:01:02.9]}
25. axb5 {[%clk 0:01:28.2]} 25... Bxb5 {[%clk 0:01:03.8]} 26. e5 {[%clk
0:01:27.9]} 26... Rfb8 {[%clk 0:00:59.9]} 27. Bd5 {[%clk 0:01:21.3]} 27... Ba6
{[%clk 0:00:39.6]} 28. Ra1 {[%clk 0:01:10]} 28... c3 {[%clk 0:00:38.4]} 29. dxc3
{[%clk 0:01:06.5]} 29... d3 {[%clk 0:00:38.9]} 30. c4 {[%clk 0:01:00.3]} 30...
c6 {[%clk 0:00:38.5]} 31. Be4 {[%clk 0:00:56.8]} 31... Bxc4 {[%clk 0:00:30.7]}
32. Rxc4 {[%clk 0:00:53.3]} 32... Rb1+ {[%clk 0:00:29.6]} 33. Rxb1 {[%clk
0:00:52.2]} 33... Rxb1+ {[%clk 0:00:30.5]} 34. Kg2 {[%clk 0:00:49.6]} 34... d2
{[%clk 0:00:31.4]} 35. Bf3 {[%clk 0:00:46.5]} 35... d1=Q {[%clk 0:00:25]} 36.
Bxd1 {[%clk 0:00:45.8]} 36... Rxd1 {[%clk 0:00:25.9]} 37. Rxc6 {[%clk
0:00:45.6]} 37... Rd2+ {[%clk 0:00:26.3]} 38. Kh3 {[%clk 0:00:42.2]} 38... g6
{[%clk 0:00:27.2]} 39. Ra6 {[%clk 0:00:40.1]} 39... Re2 {[%clk 0:00:26.6]} 40.
Ra1 {[%clk 0:00:36.4]} 40... Ke6 {[%clk 0:00:25.7]} 41. Rg1 {[%clk 0:00:35.4]}
41... Kf5 {[%clk 0:00:25.7]} 42. Rg2 {[%clk 0:00:35.4]} 42... Re4 {[%clk
0:00:21.6]} 43. Rf2 {[%clk 0:00:33.2]} 43... Re3 {[%clk 0:00:20.3]} 44. Kg2
{[%clk 0:00:32.9]} 44... Ra3 {[%clk 0:00:09.5]} 45. Rd2 {[%clk 0:00:31.2]} 45...
g5 {[%clk 0:00:07.8]} 46. fxg5 {[%clk 0:00:29.3]} 46... Kxg5 {[%clk 0:00:02.9]}
47. Rf2 {[%clk 0:00:28.1]} 47... Kg6 {[%clk 0:00:03.3]} 48. Rf6+ {[%clk
0:00:25.6]} 48... Kg7 {[%clk 0:00:03.7]} 49. Rf5 {[%clk 0:00:25.5]} 49... Kg6
{[%clk 0:00:03.6]} 50. Rf4 {[%clk 0:00:21.9]} 50... Re3 {[%clk 0:00:02.2]} 51.
Rf6+ {[%clk 0:00:15]} 51... Kg7 {[%clk 0:00:02.1]} 52. Rf5 {[%clk 0:00:15.5]}
52... Kg6 {[%clk 0:00:02.6]} 53. g4 {[%clk 0:00:16]} 53... Re2+ {[%clk
0:00:03.2]} 54. Kg3 {[%clk 0:00:15.4]} 54... Ra2 {[%clk 0:00:03.7]} 55. h4
{[%clk 0:00:14.3]} 55... Ra4 {[%clk 0:00:04]} 56. h5+ {[%clk 0:00:13.4]} 56...
Kg7 {[%clk 0:00:04.7]} 57. Kh4 {[%clk 0:00:12.8]} 57... Ra1 {[%clk 0:00:05]} 58.
Kg5 {[%clk 0:00:12.8]} 58... Ra6 {[%clk 0:00:05.9]} 59. h6+ {[%clk 0:00:11.4]}
59... Kg8 {[%clk 0:00:04.5]} 60. Rf6 {[%clk 0:00:10.6]} 60... Ra5 {[%clk
0:00:05.1]} 61. Kf5 {[%clk 0:00:10.4]} 61... Ra1 {[%clk 0:00:04.4]} 62. Rb6
{[%clk 0:00:10.2]} 62... Rf1+ {[%clk 0:00:04.4]} 63. Kg5 {[%clk 0:00:09.9]}
63... Kh7 {[%clk 0:00:04.5]} 64. Rf6 {[%clk 0:00:08.7]} 64... Re1 {[%clk
0:00:03.1]} 65. Rxf7+ {[%clk 0:00:08.9]} 65... Kg8 {[%clk 0:00:04]} 66. Re7
{[%clk 0:00:07.2]} 66... Re2 {[%clk 0:00:04.1]} 67. Kg6 {[%clk 0:00:06.1]} 67...
Kh8 {[%clk 0:00:04.4]} 68. Re8# {[%clk 0:00:06]} 1-0